bitfinex/quotes_BTCUSD_20251217
["timestamp","ask_amount","ask_price","bid_price","bid_amount"]
[1765968917103,2.66681275,86800.0,86797.0,0.00025328]
[1765968917711,2.77920422,86800.0,86797.0,0.00025328]
[1765968917997,2.6961253,86800.0,86797.0,0.00025328]
[1765968921969,2.41687415,86798.0,86797.0,0.00025328]
[1765968922171,2.41688477,86794.0,86788.0,0.0004]
[1765968922355,2.4495857,86794.0,86788.0,0.0004]
[1765968922555,2.47889825,86794.0,86788.0,0.0004]
[1765968922756,2.48352038,86794.0,86788.0,0.0004]
[1765968923367,2.48352038,86794.0,86793.0,0.00051273]
[1765968923772,2.48752038,86794.0,86793.0,0.00051273]
[1765968924611,2.48852038,86794.0,86793.0,0.00051273]
[1765968925670,2.6512216,86794.0,86793.0,0.00051273]
[1765968927734,2.7727216,86794.0,86793.0,0.00051273]
[1765968927957,2.6512216,86794.0,86793.0,0.00051273]
[1765968929861,2.6512216,86794.0,86789.0,0.00065332]
[1765968929862,2.41689539,86790.0,86789.0,1e-08]
[1765968930049,2.41689805,86789.0,86788.0,0.0004]
[1765968930253,2.47891153,86789.0,86788.0,0.00051299]
[1765968930492,2.48353407,86789.0,86788.0,0.00051299]
[1765968932011,2.48553407,86789.0,86788.0,0.00151299]
[1765968932424,2.49053407,86789.0,86788.0,0.00151299]
[1765968933105,2.50877407,86789.0,86788.0,0.00151299]
[1765968933655,2.49053407,86789.0,86788.0,0.00151299]
[1765968934076,2.50877407,86789.0,86788.0,0.00151299]
[1765968934500,2.67096256,86789.0,86788.0,0.00151299]
[1765968937137,2.65272256,86789.0,86788.0,0.00151299]
[1765968937385,2.67096256,86789.0,86788.0,0.00151299]
[1765968939267,2.41690336,86787.0,86786.0,0.0004]
[1765968939463,2.41690336,86787.0,86781.0,0.00025335]
[1765968939464,0.57118092,86782.0,86781.0,0.00025335]
[1765968939710,2.41691663,86782.0,86781.0,0.00025335]
[1765968939880,2.45424037,86782.0,86781.0,0.00025335]
[1765968940378,2.53718174,86782.0,86781.0,0.00025335]
[1765968940812,2.62299953,86782.0,86781.0,0.00025335]
[1765968941323,2.62799953,86782.0,86781.0,0.00025335]
[1765968941649,0.2907,86748.0,86737.0,0.03137335]
[1765968941827,0.04122437,86739.0,86738.0,0.12028]
[1765968942061,0.04122437,86739.0,86738.0,0.12189287]
[1765968942266,0.27180115,86739.0,86738.0,0.00161287]
[1765968942420,2.28358484,86739.0,86738.0,0.00161287]
[1765968942782,2.29438649,86739.0,86738.0,0.00161287]
[1765968942985,2.35450971,86739.0,86738.0,0.00161287]
[1765968943188,2.57129783,86738.0,86737.0,0.00037691]
[1765968943405,2.0,86735.0,86724.0,0.03569]
[1765968943637,2.0,86735.0,86733.0,5.00172594]
[1765968943638,2.01080165,86734.0,86733.0,5.00172594]
[1765968944244,2.04547962,86734.0,86733.0,5.00172594]
[1765968945010,2.04647962,86734.0,86733.0,5.00372594]
[1765968946329,2.04847962,86734.0,86733.0,5.00372594]
[1765968949031,2.04847962,86734.0,86733.0,4.91772594]
[1765968949437,2.04847962,86734.0,86733.0,4.91924696]
[1765968950630,2.2790697,86734.0,86733.0,4.91924696]
[1765968952003,2.04847962,86734.0,86733.0,4.91924696]
[1765968954432,2.04847962,86734.0,86733.0,5.03952696]
[1765968954906,2.04847962,86734.0,86733.0,4.91924696]
[1765968955516,2.04847962,86734.0,86733.0,5.03952696]
[1765968955882,2.30450165,86734.0,86733.0,5.03952696]
[1765968956081,2.01380165,86734.0,86733.0,4.95352696]
[1765968956305,0.003,86734.0,86733.0,4.95352696]
[1765968956723,0.001,86734.0,86733.0,4.95352696]
[1765968956901,0.0107868,86738.0,86737.0,0.04618]
[1765968957120,2.33192437,86739.0,86738.0,0.15758287]
[1765968957466,2.34271192,86739.0,86738.0,0.15658287]
[1765968957839,2.34271192,86739.0,86738.0,0.15794537]
[1765968958240,2.34271192,86739.0,86738.0,0.15694537]
[1765968958863,2.34271192,86739.0,86738.0,0.15594537]
[1765968959582,2.34371192,86739.0,86738.0,0.15594537]
[1765968960145,2.34371192,86739.0,86738.0,0.15894537]
[1765968960346,2.34471192,86739.0,86738.0,0.15894537]
[1765968960741,2.34471192,86739.0,86738.0,0.04166537]
[1765968960935,2.34471192,86739.0,86738.0,0.16194537]
[1765968963296,2.34471192,86739.0,86738.0,0.13894537]
[1765968964774,2.34471192,86739.0,86738.0,0.00597537]
[1765968967153,2.34471192,86739.0,86738.0,0.07961537]
[1765968967361,2.34471192,86739.0,86738.0,0.12522537]
[1765968967980,2.34471192,86739.0,86738.0,0.24068615]
[1765968968443,2.34471192,86739.0,86738.0,0.12522537]
[1765968970014,0.05401192,86739.0,86738.0,0.12522537]
[1765968970790,0.05401192,86739.0,86738.0,0.09822537]
[1765968974111,0.05401192,86739.0,86738.0,0.12128331]
[1765968974721,0.01278755,86739.0,86738.0,0.12128331]
[1765968974920,0.01278755,86739.0,86738.0,0.23674409]
[1765968975158,0.01278755,86739.0,86738.0,0.21368615]
[1765968975159,0.002,86739.0,86738.0,0.21368615]
[1765968975526,0.001,86739.0,86738.0,0.21368615]
[1765968975920,0.01078755,86743.0,86742.0,0.11925]
[1765968976320,0.01078755,86743.0,86742.0,0.14871108]
[1765968977187,0.01178755,86743.0,86742.0,0.15171108]
[1765968980312,0.001,86743.0,86742.0,0.15171108]
[1765968980723,0.001,86743.0,86742.0,0.17476796]
[1765968982124,0.01078755,86748.0,86747.0,0.15346]
[1765968982324,0.01078755,86748.0,86747.0,0.17651555]
[1765968982740,0.01078755,86748.0,86747.0,0.19903721]
[1765968982936,0.01078755,86748.0,86747.0,0.17651555]
[1765968983353,0.01178755,86748.0,86747.0,0.15746]
[1765968984506,0.01178755,86748.0,86747.0,0.15946]
[1765968984741,0.01178755,86748.0,86747.0,0.18258177]
[1765968985118,0.001,86748.0,86747.0,0.18258177]
[1765968987571,2.03466266,86764.0,86763.0,0.15346]
[1765968988103,2.03501112,86764.0,86763.0,0.12546]
[1765968988651,2.03538634,86764.0,86763.0,0.12746]
[1765968989277,2.03638634,86764.0,86763.0,0.12746]
[1765968989476,2.32708634,86764.0,86763.0,0.12746]
[1765968990550,2.32708634,86764.0,86763.0,0.002]
[1765968995056,0.2907,86762.0,86760.0,0.02721]
[1765968995263,2.2907,86761.0,86760.0,0.02721]
[1765968996061,2.2907,86761.0,86760.0,0.040716]
[1765968996269,2.2907,86761.0,86760.0,0.042716]
[1765968996694,2.2907,86761.0,86760.0,0.002]
[1765968997661,2.2907,86760.0,86758.0,0.07409]
[1765968997836,2.2907,86759.0,86758.0,0.12378]
[1765968998015,2.2907,86759.0,86758.0,0.14297]
[1765968998219,2.2907,86759.0,86758.0,0.12378]
[1765968998996,2.2907,86759.0,86758.0,0.12578]
[1765968999541,2.30150273,86759.0,86758.0,0.12578]
[1765969002211,2.30150273,86759.0,86758.0,0.09978]
[1765969003206,2.30150273,86759.0,86758.0,0.11657]
[1765969004327,2.30150273,86759.0,86758.0,0.09978]
[1765969007558,0.01080273,86759.0,86758.0,0.09978]
[1765969008161,0.00025344,86761.0,86760.0,0.12378]
[1765969009154,0.00025344,86761.0,86760.0,0.10178]
[1765969010082,0.00025344,86761.0,86760.0,0.10078]
[1765969010282,0.00025344,86761.0,86760.0,0.14332735]
[1765969010605,0.2907,86769.0,86762.0,0.07409]
[1765969010804,0.2907,86769.0,86768.0,0.15774]
[1765969011034,0.2907,86769.0,86768.0,0.15674]
[1765969011774,2.0108152,86774.0,86773.0,0.12378]
[1765969011979,2.3015152,86774.0,86773.0,0.12378]
[1765969013184,2.3015152,86774.0,86773.0,0.04969]
[1765969013387,0.2907,86771.0,86768.0,0.03496]
[1765969013588,0.02447,86773.0,86768.0,0.03496]
[1765969013783,2.0,86770.0,86768.0,0.10705]
[1765969013998,0.2907,86769.0,86768.0,0.10705]
[1765969014834,0.0108152,86774.0,86768.0,0.10705]
[1765969015041,0.2907,86772.0,86769.0,0.07409]
[1765969015310,2.2907,86770.0,86769.0,0.12378]
[1765969016370,2.29098507,86770.0,86769.0,0.10178]
[1765969017361,2.29098507,86770.0,86769.0,0.10378]
[1765969017560,2.29098507,86770.0,86769.0,0.12491719]
[1765969019252,2.29098507,86770.0,86769.0,0.14796689]
[1765969019670,2.29098507,86770.0,86769.0,0.12491719]
[1765969020128,2.29098507,86770.0,86769.0,0.14796689]
[1765969020129,0.00028507,86770.0,86769.0,0.14796689]
[1765969020894,0.00028507,86770.0,86769.0,0.1268297]
[1765969021201,2.00028507,86770.0,86769.0,0.002]
[1765969021398,2.29098507,86770.0,86769.0,0.002]
[1765969022715,2.30178894,86770.0,86769.0,0.002]
[1765969029922,2.30178894,86770.0,86769.0,0.07069]
[1765969030159,2.30178894,86770.0,86769.0,0.12057]
[1765969031140,2.30178894,86770.0,86769.0,0.05188]
[1765969031348,2.30178894,86770.0,86769.0,0.002]
[1765969039413,2.29098507,86770.0,86769.0,0.002]
[1765969039628,2.30181168,86770.0,86769.0,0.002]
[1765969042512,2.30181168,86770.0,86769.0,0.12057]
[1765969042719,2.30181168,86770.0,86769.0,0.002]
[1765969044830,2.30342455,86770.0,86769.0,0.002]
[1765969045202,2.65104896,86770.0,86769.0,0.002]
[1765969045428,2.43076,86763.0,86762.0,0.00011307]
[1765969045626,2.44319948,86763.0,86762.0,0.00011307]
[1765969046647,2.47779948,86763.0,86762.0,0.00011307]
[1765969047250,2.47879948,86763.0,86762.0,0.00011307]
[1765969047403,2.36166948,86763.0,86762.0,0.00011307]
[1765969047740,2.40976948,86763.0,86762.0,0.00211307]
[1765969048176,2.45586948,86763.0,86762.0,0.00211307]
[1765969049920,2.33873948,86763.0,86762.0,0.00211307]
[1765969057172,2.33873948,86763.0,86762.0,0.12104307]
[1765969058375,2.33873948,86763.0,86762.0,0.00211307]
[1765969059737,2.40745948,86763.0,86762.0,0.00211307]
[1765969060141,2.33873948,86763.0,86762.0,0.00211307]
[1765969063350,2.33873948,86763.0,86762.0,0.04951307]
[1765969063557,2.33712661,86763.0,86762.0,0.13262738]
[1765969063765,0.30252661,86763.0,86762.0,0.13262738]
[1765969064743,0.30252661,86763.0,86762.0,0.12104307]
[1765969066114,0.30252661,86763.0,86762.0,0.04951307]
[1765969066313,0.30252661,86763.0,86762.0,0.00211307]
[1765969067573,0.30252661,86763.0,86762.0,0.12104307]
[1765969069454,0.30252661,86763.0,86762.0,0.14409463]
[1765969070041,0.30152661,86763.0,86762.0,0.14409463]
[1765969070241,0.30152661,86763.0,86762.0,0.11904307]
[1765969070446,0.30152661,86763.0,86762.0,0.12004307]
[1765969070699,0.30152661,86763.0,86762.0,0.12304307]
[1765969071334,0.30152661,86763.0,86762.0,0.14428572]
[1765969071938,0.30152661,86763.0,86762.0,0.12304307]
[1765969081599,0.30152661,86763.0,86762.0,0.00411307]
[1765969082554,0.30152661,86763.0,86762.0,0.12304307]
[1765969085498,0.30151275,86763.0,86762.0,0.12304307]
[1765969090147,0.30151275,86763.0,86762.0,0.05151307]
[1765969090472,0.30151275,86763.0,86762.0,0.12276307]
[1765969091754,0.30151275,86763.0,86762.0,0.14167238]
[1765969096179,0.30151275,86763.0,86762.0,0.05151307]
[1765969096400,0.30151275,86763.0,86762.0,0.00411307]
[1765969096858,2.30151275,86763.0,86762.0,0.00411307]
[1765969097685,2.42085562,86763.0,86762.0,0.00411307]
[1765969097884,2.30312562,86763.0,86762.0,0.00411307]
[1765969098461,2.30312562,86763.0,86762.0,0.00111307]
[1765969105056,2.30312562,86763.0,86762.0,0.12137307]
[1765969105257,2.30151275,86763.0,86762.0,0.13175038]
[1765969105466,2.30151275,86763.0,86762.0,0.12137307]
[1765969105668,0.30151275,86763.0,86762.0,0.12137307]
[1765969105869,0.01081275,86763.0,86762.0,0.12137307]
[1765969106185,0.0002534,86769.0,86762.0,0.12137307]
[1765969106186,0.0002534,86769.0,86768.0,0.12026]
[1765969106350,0.0002534,86769.0,86768.0,0.16154997]
[1765969106551,0.0002534,86769.0,86768.0,0.18793405]
[1765969108102,0.0002534,86769.0,86768.0,0.18993405]
[1765969108327,0.0002534,86769.0,86768.0,0.22205392]
[1765969109431,0.0002534,86769.0,86768.0,0.17269405]
[1765969109707,0.0002534,86769.0,86768.0,0.19093405]
[1765969110910,0.03465085,86791.0,86780.0,0.0346]
[1765969111069,0.33749867,86790.0,86781.0,0.010585]
[1765969111268,0.34638244,86790.0,86781.0,0.07125]
[1765969111919,0.33749867,86790.0,86781.0,0.07125]
[1765969113111,0.33849867,86790.0,86781.0,0.07125]
[1765969113324,0.35099531,86790.0,86781.0,0.05425]
[1765969113776,0.34999531,86790.0,86781.0,0.05425]
[1765969113911,0.35099531,86790.0,86782.0,0.008885]
[1765969114312,0.34211154,86790.0,86782.0,0.008885]
[1765969114514,0.34211154,86790.0,86780.0,0.0346]
[1765969114714,0.34111154,86790.0,86780.0,0.0346]
[1765969114937,0.34211154,86790.0,86780.0,0.0346]
[1765969115164,0.35099531,86790.0,86780.0,0.0346]
[1765969115365,0.35099531,86790.0,86781.0,0.07181]
[1765969115564,0.35099531,86790.0,86782.0,0.010641]
[1765969115791,0.34211154,86790.0,86782.0,0.082451]
[1765969116015,0.34899531,86790.0,86782.0,0.082451]
[1765969116283,0.34799531,86790.0,86782.0,0.082451]
[1765969116476,0.34999531,86790.0,86782.0,0.082451]
[1765969116800,0.35099531,86790.0,86782.0,0.082451]
[1765969117011,0.35099531,86790.0,86783.0,0.02753]
[1765969117227,0.34999531,86790.0,86783.0,0.02753]
[1765969117487,0.35099531,86790.0,86783.0,0.02753]
[1765969117685,0.35099531,86790.0,86783.0,0.0419881]
[1765969118109,0.34999531,86790.0,86783.0,0.0419881]
[1765969118550,0.00361287,86790.0,86784.0,0.07351]
[1765969118734,0.00361287,86790.0,86785.0,0.01500981]
[1765969119190,0.01249664,86790.0,86783.0,0.02753]
[1765969119527,0.01149664,86790.0,86783.0,0.02753]
[1765969119908,0.02965,86789.0,86783.0,0.02753]
[1765969120353,0.00461287,86790.0,86784.0,0.05751]
[1765969120554,0.00461287,86790.0,86789.0,0.06721]
[1765969120767,0.00161287,86790.0,86789.0,0.06721]
[1765969120967,0.2907,86793.0,86792.0,0.04817]
[1765969121191,0.2907,86793.0,86792.0,0.04717]
[1765969121409,0.32535005,86793.0,86792.0,0.04717]
[1765969121637,0.03465005,86793.0,86792.0,0.04517]
[1765969121851,0.03465005,86793.0,86792.0,0.054894]
[1765969122273,0.03465005,86793.0,86792.0,0.04517]
[1765969122518,0.03465005,86793.0,86792.0,0.11868]
[1765969122898,0.04618316,86793.0,86792.0,0.11868]
[1765969123693,0.01253311,86793.0,86792.0,0.11868]
[1765969123907,0.00175997,86793.0,86792.0,0.11868]
[1765969124460,0.01253311,86793.0,86792.0,0.11868]
[1765969124967,0.01253311,86793.0,86792.0,0.16110313]
[1765969125146,0.00175997,86793.0,86792.0,0.13805954]
[1765969125903,0.00175997,86793.0,86792.0,0.14105954]
[1765969126324,0.00075997,86793.0,86792.0,0.14105954]
[1765969126766,0.00075997,86793.0,86792.0,0.14305954]
[1765969127630,0.00075997,86793.0,86792.0,0.12005954]
[1765969128682,0.00075997,86793.0,86792.0,0.11705954]
[1765969128889,0.00075997,86793.0,86792.0,0.12005954]
[1765969129402,0.00075997,86793.0,86792.0,0.11705954]
[1765969129608,0.00075997,86793.0,86792.0,0.11505954]
[1765969129756,0.00075997,86793.0,86792.0,0.11905954]
[1765969133296,0.00075997,86793.0,86792.0,0.004]
[1765969134717,0.00237284,86793.0,86791.0,0.02603]
[1765969134887,0.00161287,86793.0,86791.0,0.02603]
[1765969135823,0.00161287,86793.0,86791.0,0.10154]
[1765969136021,0.00161287,86793.0,86791.0,0.10354]
[1765969136191,0.00161287,86793.0,86792.0,0.01436254]
[1765969137098,0.01240842,86793.0,86792.0,0.01436254]
[1765969137342,0.00171228,86793.0,86792.0,0.01436254]
[1765969137548,0.00171228,86793.0,86792.0,0.01636254]
[1765969137979,0.00171228,86793.0,86792.0,0.002]
[1765969138182,0.00171228,86793.0,86792.0,0.004]
[1765969139279,0.00171228,86793.0,86792.0,0.12568]
[1765969141698,9.941e-05,86793.0,86792.0,0.10568]
[1765969142095,0.00085938,86793.0,86792.0,0.10568]
[1765969142434,0.01165827,86793.0,86792.0,0.12285952]
[1765969142588,0.00085938,86793.0,86792.0,0.12285952]
[1765969143819,0.01165827,86793.0,86792.0,0.12285952]
[1765969144042,0.00085938,86793.0,86792.0,0.12285952]
[1765969145419,0.01165827,86793.0,86792.0,0.14590311]
[1765969145789,0.00085938,86793.0,86792.0,0.14590311]
[1765969148221,0.00085938,86793.0,86792.0,0.14890311]
[1765969148425,0.00085938,86793.0,86792.0,0.15090311]
[1765969148666,0.00085938,86793.0,86792.0,0.12785952]
[1765969152566,0.00085938,86793.0,86792.0,0.11068]
[1765969152744,0.00085938,86793.0,86792.0,0.03717]
[1765969152900,0.00085938,86793.0,86792.0,0.10949]
[1765969153706,0.00085938,86793.0,86792.0,0.10649]
[1765969153924,0.00085938,86793.0,86792.0,0.10549]
[1765969154531,0.00085938,86793.0,86792.0,0.1275807]
[1765969156418,0.00085938,86793.0,86792.0,0.001]
[1765969156934,0.0116549,86793.0,86792.0,0.001]
[1765969157462,0.0116549,86793.0,86791.0,0.01907]
[1765969157778,0.0116549,86793.0,86791.0,0.13946]
[1765969157779,0.01079552,86792.0,86791.0,0.13946]
[1765969157992,9.941e-05,86793.0,86792.0,0.12039]
[1765969158973,0.01088912,86793.0,86792.0,0.04807]
[1765969159175,9.941e-05,86793.0,86791.0,0.01907]
[1765969159800,9.941e-05,86793.0,86791.0,0.02007]
[1765969160214,0.01088912,86793.0,86791.0,0.02007]
[1765969160421,0.01078971,86792.0,86791.0,0.02007]
[1765969160562,9.941e-05,86793.0,86791.0,0.02007]
[1765969160963,9.941e-05,86793.0,86792.0,0.13545752]
[1765969162914,0.01088912,86793.0,86792.0,0.13545752]
[1765969163125,9.941e-05,86793.0,86792.0,0.13545752]
[1765969163333,0.00085938,86793.0,86792.0,0.13545752]
[1765969164332,0.01164909,86793.0,86792.0,0.13645752]
[1765969164512,0.00085938,86793.0,86792.0,0.13645752]
[1765969165726,0.01164909,86793.0,86792.0,0.13645752]
[1765969165968,0.00085938,86793.0,86792.0,0.13645752]
[1765969168498,0.01164909,86793.0,86792.0,0.13645752]
[1765969168700,0.00085938,86793.0,86792.0,0.12139]
[1765969171577,0.01164909,86793.0,86792.0,0.12139]
[1765969172026,0.00085938,86793.0,86792.0,0.12139]
[1765969172175,0.00085938,86793.0,86792.0,0.001]
[1765969172587,0.01164909,86793.0,86792.0,0.001]
[1765969173045,0.01164909,86793.0,86792.0,0.12139]
[1765969173250,0.00085938,86793.0,86792.0,0.12139]
[1765969174331,0.01164909,86793.0,86792.0,0.12139]
[1765969175570,0.01164909,86793.0,86792.0,0.04907]
[1765969176391,0.00085938,86793.0,86792.0,0.04907]
[1765969177332,0.01164909,86793.0,86792.0,0.04907]
[1765969181475,0.01164909,86793.0,86792.0,0.12202]
[1765969182932,0.01164909,86793.0,86792.0,0.04907]
[1765969184081,2.0,86801.0,86792.0,0.0721178]
[1765969185726,0.02393,86799.0,86792.0,0.0240478]
[1765969186065,0.02393,86799.0,86792.0,0.0230478]
[1765969187294,0.02493,86799.0,86792.0,0.0230478]
[1765969188797,0.02493,86799.0,86793.0,0.01321078]
[1765969189829,0.001,86799.0,86793.0,0.12074078]
[1765969190092,2.0,86800.0,86793.0,0.04779078]
[1765969190368,2.0,86800.0,86793.0,0.03458]
[1765969190573,0.001,86799.0,86793.0,0.03458]
[1765969192034,2.0,86800.0,86793.0,0.03458]
[1765969192447,2.0,86799.0,86793.0,0.03458]
[1765969192664,2.0,86800.0,86793.0,0.03458]
[1765969192863,0.001,86799.0,86794.0,0.014364]
[1765969193253,2.0,86800.0,86794.0,0.014364]
[1765969193466,2.001,86800.0,86794.0,0.014364]
[1765969193670,2.0,86799.0,86794.0,0.014364]
[1765969193985,0.00161287,86799.0,86794.0,0.001364]
[1765969194220,0.00161287,86799.0,86795.0,0.0072054]
[1765969195270,0.00261287,86799.0,86795.0,0.0072054]
[1765969195488,0.00161287,86799.0,86795.0,0.0072054]
[1765969196006,0.01081304,86798.0,86795.0,0.0072054]
[1765969196208,0.01081304,86797.0,86795.0,0.0072054]
[1765969196420,0.00261287,86799.0,86796.0,0.01522094]
[1765969196624,0.01081298,86798.0,86796.0,0.01522094]
[1765969196875,0.00261287,86799.0,86796.0,0.01522094]
[1765969196876,0.01081298,86797.0,86796.0,0.01522094]
[1765969198871,0.01081298,86797.0,86796.0,0.01622094]
[1765969199521,0.01181298,86797.0,86796.0,0.01622094]
[1765969200501,0.01181298,86797.0,86796.0,0.001]
[1765969200711,2.65076569,86797.0,86796.0,0.001]
[1765969200918,2.42034298,86797.0,86796.0,0.001]
[1765969201128,2.2907,86791.0,86782.0,0.01441]
[1765969201330,2.2907,86791.0,86782.0,0.01450941]
[1765969201331,2.01081298,86790.0,86782.0,0.01450941]
[1765969201474,2.0,86788.0,86783.0,0.01757793]
[1765969201674,0.01081298,86787.0,86783.0,0.09052793]
[1765969201903,0.01081298,86786.0,86783.0,0.09052793]
[1765969202098,0.01081298,86785.0,86784.0,0.04724]
[1765969202823,0.01081298,86785.0,86784.0,0.12019]
[1765969203042,0.01081298,86785.0,86784.0,0.14089172]
[1765969203227,0.01081298,86785.0,86783.0,0.002]
[1765969203552,2.06872,86790.0,86784.0,0.001]
[1765969203761,2.0,86786.0,86784.0,0.001]
[1765969203981,0.01080552,86785.0,86784.0,0.003]
[1765969204570,0.32492,86791.0,86784.0,0.003]
[1765969204571,0.2907,86791.0,86790.0,0.1517]
[1765969204865,2.30150401,86791.0,86790.0,0.08274]
[1765969205249,2.0,86790.0,86788.0,0.03458]
[1765969205443,2.01080401,86789.0,86788.0,0.1517]
[1765969205829,2.01080401,86789.0,86788.0,0.03458]
[1765969206349,2.01080401,86789.0,86788.0,0.16521743]
[1765969206520,0.01080401,86789.0,86788.0,0.16621743]
[1765969206721,2.2907,86798.0,86797.0,0.01441]
[1765969206920,2.33615476,86798.0,86797.0,0.13153]
[1765969207248,2.30150627,86798.0,86797.0,0.13153]
[1765969207600,2.30150627,86798.0,86797.0,0.151599]
[1765969207876,0.01080627,86798.0,86797.0,0.151599]
[1765969208099,0.00025327,86801.0,86800.0,0.11712]
[1765969208236,0.01106061,86801.0,86800.0,0.11712]
[1765969208603,0.01106061,86801.0,86800.0,0.11612]
[1765969208735,0.00025327,86801.0,86800.0,0.09712]
[1765969208939,0.00025327,86801.0,86800.0,0.113551]
[1765969209961,0.00125327,86801.0,86800.0,0.113551]
[1765969210137,0.01206061,86801.0,86800.0,0.113551]
[1765969210340,0.00125327,86801.0,86800.0,0.115551]
[1765969211253,0.00125327,86801.0,86800.0,0.09912]
[1765969211254,0.00025327,86801.0,86800.0,0.09912]
[1765969211478,0.00025327,86801.0,86800.0,0.10012]
[1765969212702,0.01106061,86801.0,86800.0,0.10012]
[1765969212905,0.00025327,86801.0,86800.0,0.10012]
[1765969214559,0.00025327,86801.0,86800.0,0.11832]
[1765969215001,0.00025327,86801.0,86800.0,0.135051]
[1765969215414,0.00025327,86801.0,86800.0,0.11832]
[1765969215611,0.00025327,86801.0,86800.0,0.14136147]
[1765969216258,0.01106061,86801.0,86800.0,0.14136147]
[1765969216460,0.00025327,86801.0,86800.0,0.14136147]
[1765969219883,0.01106061,86801.0,86800.0,0.14136147]
[1765969220084,0.00025327,86801.0,86800.0,0.14136147]
[1765969222936,0.00025327,86801.0,86800.0,0.16039662]
[1765969226955,0.00025327,86801.0,86800.0,0.15839662]
[1765969227398,0.00025327,86801.0,86800.0,0.16039662]
[1765969227570,0.00025327,86801.0,86800.0,0.15939662]
[1765969227777,0.00025327,86801.0,86800.0,0.16039662]
[1765969228583,0.00025327,86801.0,86800.0,0.14136147]
[1765969232440,0.00025327,86801.0,86800.0,0.1724456]
[1765969233627,0.00025327,86801.0,86800.0,0.17240883]
[1765969234537,0.00025327,86801.0,86800.0,0.14136147]
[1765969237359,0.00025327,86801.0,86800.0,0.18283158]
[1765969237558,0.00025327,86801.0,86800.0,0.21405426]
[1765969238121,0.00025327,86801.0,86800.0,0.15438415]
[1765969238302,0.00025327,86801.0,86800.0,0.17258415]
[1765969241374,0.00025327,86801.0,86800.0,0.21405426]
[1765969242477,0.00025327,86801.0,86800.0,0.12316147]
[1765969242695,0.00025327,86801.0,86800.0,0.14136147]
[1765969249321,0.00025327,86801.0,86800.0,0.18283158]
[1765969250166,0.00025327,86801.0,86800.0,0.14136147]
[1765969251413,0.00025327,86801.0,86800.0,0.18283158]
[1765969251627,0.00025327,86801.0,86800.0,0.21569806]
[1765969252388,0.00025327,86801.0,86800.0,0.17422795]
[1765969261206,0.00025327,86801.0,86800.0,0.14136147]
[1765969261441,0.00025327,86801.0,86800.0,0.18281706]
[1765969262287,0.00025327,86801.0,86800.0,0.14136147]
[1765969263361,0.00954654,86815.0,86802.0,0.06753]
[1765969263575,0.2907,86826.0,86814.0,0.01458]
[1765969263757,0.2907,86822.0,86815.0,0.011669]
[1765969264625,0.29231287,86822.0,86815.0,0.010669]
[1765969264757,0.00172584,86822.0,86815.0,0.010669]
[1765969264966,0.00372584,86822.0,86815.0,0.010669]
[1765969265949,0.07416584,86822.0,86814.0,0.01458]
[1765969266423,0.07516584,86822.0,86814.0,0.01458]
[1765969266925,0.07216584,86822.0,86814.0,0.01458]
[1765969267211,0.07516584,86822.0,86814.0,0.01458]
[1765969267696,0.07516584,86822.0,86803.0,0.03109488]
[1765969267697,0.07044,86817.0,86803.0,0.03109488]
[1765969267899,0.2907,86810.0,86798.0,0.0182]
[1765969268104,2.0,86808.0,86796.0,0.03109488]
[1765969268300,2.0,86808.0,86795.0,0.07002]
[1765969269631,2.0,86808.0,86797.0,0.03500287]
[1765969269850,2.0,86808.0,86797.0,0.03600287]
[1765969270951,0.07044,86808.0,86797.0,0.03700287]
[1765969271401,0.07044,86808.0,86797.0,0.03600287]
[1765969271601,0.07244,86808.0,86797.0,0.03500287]
[1765969271975,0.07344,86808.0,86798.0,0.01608467]
[1765969272178,0.07344,86808.0,86797.0,0.01441]
[1765969273032,0.40750896,86807.0,86797.0,0.01441]
[1765969273841,0.2907,86806.0,86797.0,0.01441]
[1765969274729,0.36114,86806.0,86797.0,0.01441]
[1765969275478,0.01080183,86805.0,86797.0,0.01441]
[1765969275903,0.01080183,86804.0,86797.0,0.01441]
[1765969276180,0.01080183,86803.0,86797.0,0.01441]
[1765969276403,0.01080183,86802.0,86797.0,0.08443]
[1765969276603,0.01080183,86801.0,86797.0,0.08443]
[1765969276838,0.01080183,86800.0,86799.0,0.11512]
[1765969277044,0.30915323,86809.0,86808.0,0.11512]
[1765969277045,0.00025323,86809.0,86808.0,0.11512]
[1765969277254,0.00025323,86809.0,86808.0,0.13815935]
[1765969277689,0.00025323,86809.0,86808.0,0.13715935]
[1765969277892,0.00025323,86809.0,86808.0,0.13615935]
[1765969278084,0.00025323,86809.0,86808.0,0.15816277]
[1765969278691,0.00025323,86809.0,86808.0,0.15916277]
[1765969279246,0.00025323,86809.0,86808.0,0.16016277]
[1765969279447,0.00025323,86809.0,86808.0,0.15916277]
[1765969279853,0.00025323,86809.0,86808.0,0.16016277]
[1765969280453,0.00025323,86809.0,86808.0,0.19125764]
[1765969280628,0.00025323,86809.0,86808.0,0.16016277]
[1765969281407,0.00025323,86809.0,86808.0,0.19119037]
[1765969288308,0.00025323,86809.0,86808.0,0.16016277]
[1765969302213,0.03643,86829.0,86812.0,0.07199]
[1765969302415,0.03643,86829.0,86814.0,0.07199]
[1765969303575,0.03843,86829.0,86814.0,0.07199]
[1765969303988,0.04043,86829.0,86814.0,0.07199]
[1765969304194,0.03843,86829.0,86814.0,0.07199]
[1765969304390,0.03843,86829.0,86813.0,0.0182]
[1765969304391,0.03843,86829.0,86817.0,0.07199]
[1765969304655,0.04043,86829.0,86817.0,0.07199]
[1765969305094,0.03843,86829.0,86817.0,0.07199]
[1765969305504,0.002,86829.0,86828.0,0.13818]
[1765969305704,0.002,86829.0,86828.0,0.15799287]
[1765969305910,0.0004,86830.0,86829.0,0.12089]
[1765969306117,0.0004,86830.0,86829.0,0.12050287]
[1765969306695,0.0004,86830.0,86829.0,0.11850287]
[1765969307539,0.0004,86830.0,86829.0,0.12250287]
[1765969311312,0.0004,86830.0,86829.0,0.05051287]
[1765969311728,0.00106454,86830.0,86829.0,0.05051287]
[1765969311923,0.00106454,86830.0,86829.0,0.06631216]
[1765969312125,0.00106454,86830.0,86829.0,0.004]
[1765969314358,0.00106454,86830.0,86829.0,0.12489]
[1765969316416,0.00106454,86830.0,86829.0,0.0529]
[1765969317931,0.00106454,86830.0,86829.0,0.004]
[1765969319527,0.00106454,86830.0,86829.0,0.002]
[1765969319664,0.00106454,86830.0,86826.0,0.0182]
[1765969319869,0.0004,86830.0,86829.0,0.001]
[1765969320075,0.0004,86830.0,86829.0,0.002]
[1765969320479,0.0004,86830.0,86829.0,0.001]